fUST/lending_fUST_20260313
["ID","MTS","AMOUNT","RATE_DAILY","PERIOD"]
[408311111,1773389246419,-2403.12422881,0.00036898,120]
[408311112,1773389246477,-226.31706675,0.00036898,120]
[408311113,1773389246536,-228.40955711,0.00036898,120]
[408311114,1773389246591,-500.0,0.00036898,120]
[408311115,1773389246650,-500.0,0.00036898,120]
[408311116,1773389246709,-500.0,0.00036898,120]
[408311117,1773389246769,-500.0,0.00036898,120]
[408311118,1773389246827,-500.0,0.00036898,120]
[408311119,1773389246888,-500.0,0.00036898,120]
[408311120,1773389246949,-500.0,0.00036898,120]
[408311121,1773389247009,-500.0,0.00036898,120]
[408311122,1773389247067,-500.0,0.00036898,120]
[408311123,1773389247125,-400.63009482,0.00036898,120]
[408311124,1773389247184,-571.54070175,0.00036898,120]
[408311125,1773389247241,-500.0,0.00036898,120]
[408311126,1773389247298,-500.0,0.00036898,120]
[408311127,1773389247357,-500.0,0.00036898,120]
[408311128,1773389247411,-272.5185537,0.00036898,120]
[408311129,1773389247471,-500.0,0.00036898,120]
[408311130,1773389247531,-325.67847382,0.00036898,120]
[408311131,1773389247589,-500.0,0.00036898,120]
[408311132,1773389247648,-500.0,0.00036898,120]
[408311133,1773389247708,-500.0,0.00036898,120]
[408311134,1773389247768,-500.0,0.00036898,120]
[408311135,1773389247827,-500.0,0.00036898,120]
[408311136,1773389247888,-500.0,0.00036898,120]
[408311137,1773389247947,-500.0,0.00036898,120]
[408311138,1773389248000,-500.0,0.00036898,120]
[408311139,1773389248050,-500.0,0.00036898,120]
[408311140,1773389248102,-500.0,0.00036898,120]
[408311141,1773389248156,-500.0,0.00036898,120]
[408311142,1773389248206,-500.0,0.00036898,120]
[408311143,1773389248256,-500.0,0.00036898,120]
[408311144,1773389248310,-500.0,0.00036898,120]
[408311145,1773389248363,-500.0,0.00036898,120]
[408311146,1773389248417,-500.0,0.00036898,120]
[408311147,1773389248473,-500.0,0.00036898,120]
[408311148,1773389248528,-500.0,0.00036898,120]
[408311149,1773389248582,-500.0,0.00036898,120]
[408311150,1773389248634,-500.0,0.00036898,120]
[408311151,1773389248690,-500.0,0.00036898,120]
[408311152,1773389248745,-500.0,0.00036898,120]
[408311153,1773389248800,-500.0,0.00036898,120]
[408311154,1773389248853,-500.0,0.00036898,120]
[408311155,1773389248904,-518.2787233,0.00036898,120]
[408311156,1773389248958,-500.0,0.00036898,120]
[408311157,1773389249013,-500.0,0.00036898,120]
[408311158,1773389249065,-500.0,0.00036898,120]
[408311159,1773389249115,-500.0,0.00036898,120]
[408311160,1773389249167,-500.0,0.00036898,120]
[408311161,1773389249217,-500.0,0.00036898,120]
[408311162,1773389249270,-500.0,0.00036898,120]
[408311163,1773389249326,-500.0,0.00036898,120]
[408311164,1773389249380,-500.0,0.00036898,120]
[408311165,1773389249433,-500.0,0.00036898,120]
[408311166,1773389249485,-500.0,0.00036898,120]
[408311167,1773389249540,-500.0,0.00036898,120]
[408311168,1773389249592,-500.0,0.00036898,120]
[408311169,1773389249646,-500.0,0.00036898,120]
[408311170,1773389249699,-500.0,0.00036898,120]
[408311171,1773389249754,-500.0,0.00036898,120]
[408311172,1773389249806,-500.0,0.00036898,120]
[408311173,1773389249857,-500.0,0.00036898,120]
[408311174,1773389249909,-500.0,0.00036898,120]
[408311175,1773389249960,-226.02214587,0.00036898,120]
[408311176,1773389250014,-500.0,0.00036898,120]
[408311177,1773389250072,-500.0,0.00036898,120]
[408311178,1773389250129,-293.28206853,0.00036898,120]
[408311179,1773389250187,-500.0,0.00036898,120]
[408311180,1773389250245,-500.0,0.00036898,120]
[408311181,1773389250305,-589.97940381,0.00036898,120]
[408311182,1773389250365,-167.39918704,0.00036898,120]
[408311183,1773389250424,-721.99,0.00036898,120]
[408311184,1773389250481,-721.99,0.00036898,120]
[408311185,1773389250537,-721.99,0.00036898,120]
[408311186,1773389250593,-721.99,0.00036898,120]
[408311187,1773389250650,-721.99,0.00036898,120]
[408311188,1773389250707,-721.99,0.00036898,120]
[408311189,1773389250763,-721.99,0.00036898,120]
[408311190,1773389250820,-721.99,0.00036898,120]
[408311191,1773389250875,-721.99,0.00036898,120]
[408311192,1773389250930,-721.99,0.00036898,120]
[408311193,1773389250986,-721.99,0.00036898,120]
[408311194,1773389251040,-721.99,0.00036898,120]
[408311195,1773389251094,-721.99,0.00036898,120]
[408311196,1773389251149,-721.99,0.00036898,120]
[408311197,1773389251203,-721.99,0.00036898,120]
[408311198,1773389251257,-721.99,0.00036898,120]
[408311199,1773389251479,-721.99,0.00036898,120]
[408311200,1773389251535,-721.99,0.00036898,120]
[408311201,1773389251592,-721.99,0.00036898,120]
[408311202,1773389251646,-721.99,0.00036898,120]
[408311203,1773389251701,-721.99,0.00036898,120]
[408311204,1773389251757,-721.99,0.00036898,120]
[408311205,1773389251810,-721.99,0.00036898,120]
[408311206,1773389251863,-722.22800002,0.00036898,120]
[408311207,1773389251916,-1216.36,0.00036898,120]
[408311208,1773389251969,-1216.36,0.00036898,120]
[408311209,1773389252021,-1216.36,0.00036898,120]
[408311210,1773389252072,-1216.36,0.00036898,120]
[408311211,1773389252122,-1216.36,0.00036898,120]
[408311212,1773389252168,-1216.36,0.00036898,120]
[408311213,1773389252211,-1216.36,0.00036898,120]
[408311214,1773389252254,-1216.36,0.00036898,120]
[408311215,1773389252300,-1216.36,0.00036898,120]
[408311216,1773389252345,-1216.36,0.00036898,120]
[408311217,1773389252389,-1216.36,0.00036898,120]
[408311218,1773389252435,-1216.36,0.00036898,120]
[408311219,1773389252481,-1216.36,0.00036898,120]
[408311220,1773389252529,-1216.36,0.00036898,120]
[408311221,1773389252578,-1216.36,0.00036898,120]
[408311222,1773389252630,-1216.36,0.00036898,120]
[408311223,1773389252679,-1216.36,0.00036898,120]
[408311224,1773389252731,-1216.36,0.00036898,120]
[408311225,1773389252783,-1216.36,0.00036898,120]
[408311226,1773389252837,-1216.36,0.00036898,120]
[408311227,1773389252886,-1216.36,0.00036898,120]
[408311228,1773389252933,-1216.36,0.00036898,120]
[408311229,1773389252986,-1216.36,0.00036898,120]
[408311230,1773389253037,-1216.4820126,0.00036898,120]
[408311231,1773389253087,-1000.0,0.00036898,120]
[408311232,1773389253136,-1000.0,0.00036898,120]
[408311233,1773389253189,-1000.0,0.00036898,120]
[408311234,1773389253241,-1000.0,0.00036898,120]
[408311235,1773389253291,-1000.0,0.00036898,120]
[408311236,1773389253343,-1000.0,0.00036898,120]
[408311237,1773389253397,-1000.0,0.00036898,120]
[408311238,1773389253447,-1000.0,0.00036898,120]
[408311239,1773389253498,-1000.0,0.00036898,120]
[408311240,1773389253549,-1000.0,0.00036898,120]
[408311241,1773389253597,-1000.0,0.00036898,120]
[408311242,1773389253644,-1000.0,0.00036898,120]
[408311243,1773389253690,-1000.0,0.00036898,120]
[408311244,1773389253742,-1000.0,0.00036898,120]
[408311245,1773389253791,-1000.0,0.00036898,120]
[408311246,1773389253843,-1000.0,0.00036898,120]
[408311247,1773389253892,-1000.0,0.00036898,120]
[408311248,1773389253941,-1000.0,0.00036898,120]
[408311249,1773389253988,-1000.0,0.00036898,120]
[408311250,1773389254033,-1000.0,0.00036898,120]
[408311251,1773389254082,-972.91,0.00036898,120]
[408311252,1773389254131,-2000.0,0.00036898,120]
[408311253,1773389254177,-500.0,0.00036898,120]
[408311254,1773389254225,-404.32220662,0.00036898,120]
[408311255,1773389254271,-1283.77289377,0.00036898,60]
[408311256,1773389254323,-161.33932258,0.00036898,30]
[408311257,1773389254366,-393.08736646,0.00036898,120]
[408311258,1773389254413,-243.0519447,0.00036898,60]
[408311259,1773389254466,-168.93132306,0.00036898,120]
[408311260,1773389254517,-2000.0,0.00036898,120]
[408311261,1773389254567,-2000.0,0.00036898,120]
[408311262,1773389254614,-2000.0,0.00036898,120]
[408311263,1773389254663,-2000.0,0.00036898,120]
[408311264,1773389254714,-2000.0,0.00036898,120]
[408311265,1773389254764,-2000.0,0.00036898,120]
[408311266,1773389254813,-2000.0,0.00036898,120]
[408311267,1773389254860,-2000.0,0.00036898,120]
[408311268,1773389254909,-2000.0,0.00036898,120]
[408311269,1773389254969,-2000.0,0.00036898,120]
[408311270,1773389255033,-2000.0,0.00036898,120]
[408311271,1773389255089,-2000.0,0.00036898,120]
[408311272,1773389255147,-2000.0,0.00036898,120]
[408311273,1773389255205,-2000.0,0.00036898,120]
[408311274,1773389255265,-2000.0,0.00036898,120]
[408311275,1773389255323,-2000.0,0.00036898,120]
[408311276,1773389255378,-2000.0,0.00036898,120]
[408311277,1773389255435,-2000.0,0.00036898,120]
[408311278,1773389255494,-2000.0,0.00036898,120]
[408311279,1773389255552,-2000.0,0.00036898,120]
[408311280,1773389255611,-2000.0,0.00036898,120]
[408311281,1773389255668,-2000.0,0.00036898,120]
[408311282,1773389255724,-1139.44189555,0.00036898,120]
[408311283,1773389255780,-14003.0,0.00036898,50]
[408311284,1773389255832,-1466.27,0.00036898,120]
[408311285,1773389255885,-1466.27,0.00036898,120]
[408311286,1773389255935,-1466.27,0.00036898,120]
[408311287,1773389255987,-1466.27,0.00036898,120]
[408311288,1773389256040,-1466.27,0.00036898,120]
[408311289,1773389256093,-1466.27,0.00036898,120]
[408311290,1773389256144,-1466.27,0.00036898,120]
[408311291,1773389256194,-1466.27,0.00036898,120]
[408311292,1773389256244,-177.3666853,0.00036898,120]
[408311293,1773389261215,-167.3370074,3.956e-05,2]
[408311294,1773389261236,-300.0,8.799e-05,2]
[408311295,1773389261474,-656.0,8.799e-05,2]
[408311296,1773389261499,-876.6629926,8.8e-05,2]
[408311297,1773389282112,-2000.0,8.8e-05,2]
[408311298,1773389283555,-300.0,8.799e-05,2]
[408311299,1773389283579,-1700.0,8.8e-05,2]
[408311300,1773389284366,-2000.0,8.8e-05,2]
[408311301,1773389285273,-2000.0,8.8e-05,2]
[408311302,1773389286412,-2000.0,8.8e-05,2]
[408311303,1773389287308,-2000.0,8.8e-05,2]
[408311304,1773389288148,-2000.0,8.8e-05,2]
[408311305,1773389289141,-2000.0,8.8e-05,2]
[408311306,1773389290021,-2000.0,8.8e-05,2]
[408311317,1773389382435,2844.0330985,0.0003013,120]
[408311318,1773389416729,1000.0,0.00030137,120]
[408311335,1773389431967,-300.0,8.699e-05,2]
[408311337,1773389431977,-2277.92702027,8.7e-05,2]
[408311339,1773389431987,-1674.98508146,8.7e-05,2]
[408311341,1773389431999,-738.15826593,8.7e-05,2]
[408311343,1773389432010,-340.59312759,8.7e-05,2]
[408311345,1773389432021,-439.85722993,8.7e-05,2]
[408311391,1773389438103,-1997.20173537,8.7e-05,2]
[408311392,1773389438113,-2515.83174759,8.7e-05,2]
[408311393,1773389438123,-988.34725353,8.7e-05,2]
[408311394,1773389438132,-542.0,8.7e-05,2]
[408311395,1773389438141,-23154.29159137,8.8e-05,2]
[408311396,1773389438156,-334.4764696,8.8e-05,2]
[408311397,1773389438179,-270.6,8.8e-05,2]
[408311499,1773389440961,-0.06184729,8.8e-05,2]
[408311518,1773389446165,-22804.0011941,8.8e-05,2]
[408311519,1773389446176,-412.6492,8.8e-05,2]
[408311523,1773389516544,1692.14,0.00030136,120]
[408311530,1773389728237,5365.94,0.00030136,120]
[408311531,1773389758892,1444.0,0.00026137,120]
[408311535,1773389858554,-2000.0,7.589e-05,10]
[408311536,1773389859602,-2000.0,7.589e-05,10]
[408311537,1773389859934,-1000.0,7.589e-05,10]
[408311538,1773389859954,-1000.0,7.666e-05,10]
[408311539,1773389860257,-2000.0,7.666e-05,10]
[408311540,1773389860565,-2000.0,7.666e-05,10]
[408311541,1773389861033,-734.28116244,7.743e-05,10]
[408311542,1773389861055,-153.25755193,8.256e-05,2]
[408311543,1773389861075,-1112.46128563,8.69e-05,2]
[408311544,1773389861493,-1721.53871437,8.69e-05,2]
[408311545,1773389861517,-278.46128563,8.699e-05,2]
[408311546,1773389861819,-21.53871437,8.699e-05,2]
[408311547,1773389861843,-679.87556196,8.7e-05,2]
[408311548,1773389861865,-1298.58572367,8.7e-05,2]
[408311549,1773389862252,-405.84763784,8.7e-05,2]
[408311550,1773389862276,-1594.15236216,8.7e-05,2]
[408311551,1773389862576,-151.61561118,8.7e-05,2]
[408311552,1773389862610,-1848.38438882,8.7e-05,2]
[408311553,1773389863039,-2000.0,8.7e-05,2]
[408311554,1773389863260,-2000.0,8.7e-05,2]
[408311555,1773389863625,-2000.0,8.7e-05,2]
[408311556,1773389863941,-2000.0,8.7e-05,2]
[408311557,1773389864262,-2000.0,8.7e-05,2]
[408311558,1773389864678,-2000.0,8.7e-05,2]
[408311559,1773389865103,-2000.0,8.7e-05,2]
[408311560,1773389865453,-2000.0,8.7e-05,2]
[408311561,1773389865920,-2000.0,8.7e-05,2]
[408311562,1773389866062,-2000.0,8.7e-05,2]
[408311563,1773389866393,-2000.0,8.7e-05,2]
[408311564,1773389866724,-1961.52699952,8.7e-05,2]
[408311565,1773389866746,-38.47300048,8.773e-05,2]
[408311566,1773389867136,-461.52699952,8.773e-05,2]
[408311567,1773389867160,-500.0,8.773e-05,2]
[408311568,1773389867181,-491.20152221,8.773e-05,2]
[408311569,1773389867203,-500.0,8.773e-05,2]
[408311570,1773389867226,-47.27147827,8.773e-05,2]
[408311571,1773389867575,-452.72852173,8.773e-05,2]
[408311572,1773389867597,-436.9849899,8.773e-05,2]
[408311573,1773389867619,-1110.28648837,8.8e-05,2]
[408311574,1773389867882,-2000.0,8.8e-05,2]
[408311575,1773389868371,-2000.0,8.8e-05,2]
[408311576,1773389868522,-2000.0,8.8e-05,2]
[408311577,1773389868836,-2000.0,8.8e-05,2]
[408311578,1773389869187,-2000.0,8.8e-05,2]
[408311579,1773389869515,-2000.0,8.8e-05,2]
[408311580,1773389869958,-2000.0,8.8e-05,2]
[408311581,1773389870029,71504.0,0.00030137,120]
[408311582,1773389870169,-2000.0,8.8e-05,2]
[408311583,1773389875557,-2000.0,8.8e-05,2]
[408311584,1773389876883,-2000.0,8.8e-05,2]
[408311585,1773389880292,-2000.0,8.712e-05,2]
[408311586,1773389881378,-2000.0,8.712e-05,2]
[408311587,1773389881826,-1000.0,8.712e-05,2]
[408311588,1773389882105,-1000.0,8.8e-05,2]
[408311589,1773389882145,-2000.0,8.8e-05,2]
[408311590,1773389882508,-300.0,8.799e-05,2]
[408311591,1773389882531,-1700.0,8.8e-05,2]
[408311592,1773389882959,-2000.0,8.8e-05,2]
[408311593,1773389887389,-500.0,8.773e-05,2]
[408311594,1773389887411,-1500.0,8.8e-05,2]
[408311595,1773389888469,-2000.0,8.8e-05,2]
[408311596,1773389888739,-2000.0,8.8e-05,2]
[408311597,1773389889017,-2000.0,8.8e-05,2]
[408311598,1773389889331,-1957.856,8.795e-05,2]
[408311599,1773389889355,-42.144,8.8e-05,2]
[408311600,1773389889676,-2000.0,8.8e-05,2]
[408311601,1773389895176,-2000.0,8.8e-05,2]
[408311602,1773389896225,-2000.0,8.8e-05,2]
[408311603,1773389899936,-800.0,8.8e-05,2]
[408311604,1773390003632,189.77,2e-05,2]
[408311605,1773390056984,-300.0,8.599e-05,2]
[408311606,1773390057008,-541.0,8.599e-05,2]
[408311607,1773390057032,-866.0,8.599e-05,2]
[408311608,1773390057057,-293.0,8.6e-05,2]
[408311609,1773390057128,538.5569986,0.00023346,120]
[408311610,1773390057547,538.5569986,0.00023409,120]
[408311611,1773390057965,-2000.0,8.6e-05,2]
[408311612,1773390058064,538.5569986,0.00023472,120]
[408311613,1773390060205,-2000.0,8.6e-05,2]
[408311614,1773390061161,-2000.0,8.6e-05,2]
[408311615,1773390062053,-2000.0,8.6e-05,2]
[408311616,1773390094513,500.0,0.00027397,120]
[408311617,1773390094911,500.0,0.00027397,120]
[408311618,1773390105113,-2000.0,8.513e-05,2]
[408311619,1773390106109,-2000.0,8.513e-05,2]
[408311620,1773390107088,-1000.0,8.513e-05,2]
[408311621,1773390107111,-300.0,8.599e-05,2]
[408311622,1773390107134,-155.92563072,8.6e-05,2]
[408311623,1773390107159,-544.07436928,8.6e-05,2]
[408311624,1773390108047,-2000.0,8.6e-05,2]
[408311625,1773390109076,-2000.0,8.6e-05,2]
[408311626,1773390125690,1621.63,0.00030136,120]
[408311627,1773390132075,1833.98,0.00030137,120]
[408311628,1773390255953,-2000.0,8.514e-05,10]
[408311629,1773390257093,-2000.0,8.514e-05,10]
[408311630,1773390258025,-1000.0,8.514e-05,10]
[408311631,1773390258047,-500.0,8.573e-05,2]
[408311632,1773390258070,-500.0,8.573e-05,2]
[408311633,1773390259210,-177.7816712,8.573e-05,2]
[408311634,1773390259231,-500.0,8.573e-05,2]
[408311635,1773390259254,-300.0,8.599e-05,2]
[408311636,1773390259278,-1022.2183288,8.6e-05,2]
[408311637,1773390260625,-2000.0,8.6e-05,2]
[408311638,1773390302396,-2000.0,8.514e-05,2]
[408311639,1773390303193,-2000.0,8.514e-05,2]
[408311640,1773390303545,-1000.0,8.514e-05,2]
[408311641,1773390303567,-300.0,8.599e-05,2]
[408311642,1773390303593,-700.0,8.6e-05,2]
[408311643,1773390303842,-2000.0,8.6e-05,2]
[408311644,1773390304185,-2000.0,8.6e-05,2]
[408311645,1773390304648,-2000.0,8.6e-05,2]
[408311646,1773390304953,-500.0,8.573e-05,2]
[408311647,1773390304979,-1500.0,8.6e-05,2]
[408311648,1773390305393,-2000.0,8.6e-05,2]
[408311649,1773390305716,-2000.0,8.6e-05,2]
[408311650,1773390306074,-2000.0,8.6e-05,2]
[408311651,1773390306576,-2000.0,8.6e-05,2]
[408311652,1773390307015,-2000.0,8.6e-05,2]
[408311653,1773390307530,-2000.0,8.6e-05,2]
[408311654,1773390307962,-2000.0,8.6e-05,2]
[408311655,1773390308422,-2000.0,8.6e-05,2]
[408311656,1773390308733,-2000.0,8.6e-05,2]
[408311657,1773390309055,-2000.0,8.6e-05,2]
[408311658,1773390310138,-2000.0,8.6e-05,2]
[408311659,1773390310572,-2000.0,8.6e-05,2]
[408311660,1773390311044,-2000.0,8.6e-05,2]
[408311661,1773390311462,-2000.0,8.6e-05,2]
[408311662,1773390311623,-2000.0,8.6e-05,2]
[408311663,1773390312096,-2000.0,8.6e-05,2]
[408311664,1773390312315,-2000.0,8.6e-05,2]
[408311665,1773390312794,-2000.0,8.6e-05,2]
[408311666,1773390313251,-2000.0,8.6e-05,2]
[408311667,1773390313718,-2000.0,8.6e-05,2]
[408311668,1773390314035,-2000.0,8.6e-05,2]
[408311669,1773390337385,-2000.0,8.514e-05,2]
[408311670,1773390338353,-1649.15516467,8.514e-05,2]
[408311671,1773390338376,-350.84483533,8.6e-05,2]
[408311672,1773390339220,-2000.0,8.6e-05,2]
[408311673,1773390340161,-2000.0,8.6e-05,2]
[408311674,1773390341586,-2000.0,8.6e-05,2]
[408311675,1773390342518,-2000.0,8.6e-05,2]
[408311676,1773390343518,-2000.0,8.6e-05,2]
[408311677,1773390344469,-2000.0,8.6e-05,2]
[408311678,1773390345436,-2000.0,8.6e-05,2]
[408311679,1773390346358,-2000.0,8.6e-05,2]
[408311680,1773390360483,-2000.0,8.6e-05,2]
[408311681,1773390366621,-300.0,8.599e-05,2]
[408311682,1773390366646,-600.0,8.6e-05,2]
[408311683,1773390542122,1444.0,0.00026137,120]
[408311684,1773390611481,300.0,0.00026703,120]
[408311685,1773390612718,300.0,0.00028038,120]
[408311686,1773390613973,300.0,0.0002944,120]
[408311711,1773390632275,-532.0,7.937e-05,2]
[408311713,1773390632285,-10000.0,7.937e-05,2]
[408311715,1773390632295,-87.92301055,8.596e-05,2]
[408311718,1773390632307,-212.07698945,8.596e-05,2]
[408311720,1773390632316,-597.8343989,8.641e-05,2]
[408311722,1773390632328,-429.71575122,8.641e-05,2]
[408311724,1773390632339,-930.30584988,8.641e-05,2]
[408311726,1773390632349,-2150.738,8.641e-05,2]
[408311728,1773390632359,-4015.41439612,8.641e-05,2]
[408312132,1773390638479,-1361.43060388,8.641e-05,2]
[408312133,1773390638488,-152.80711811,8.686e-05,2]
[408312134,1773390638496,-2030.296672,8.696e-05,2]
[408312135,1773390638504,-403.95279979,8.696e-05,2]
[408312136,1773390638513,-1552.01123457,8.751e-05,2]
[408312137,1773390638522,-500.0,8.773e-05,2]
[408312138,1773390638532,-501.19572067,8.773e-05,2]
[408312139,1773390638540,-190.139,8.799e-05,2]
[408312140,1773390638548,-332.61333944,8.892e-05,2]
[408312141,1773390638557,-300.0,9.077e-05,2]
[408312142,1773390638566,-300.0,9.077e-05,2]
[408312143,1773390638574,-300.0,9.077e-05,2]
[408312144,1773390638582,-300.0,9.077e-05,2]
[408312145,1773390638591,-300.0,9.077e-05,2]
[408312146,1773390638600,-300.0,9.077e-05,2]
[408312147,1773390638608,-300.0,9.077e-05,2]
[408312148,1773390638617,-300.0,9.077e-05,2]
[408312149,1773390638625,-300.0,9.077e-05,2]
[408312150,1773390638634,-300.0,9.077e-05,2]
[408312151,1773390638643,-300.0,9.077e-05,2]
[408312152,1773390638652,-300.0,9.077e-05,2]
[408312153,1773390638660,-300.0,9.077e-05,2]
[408312154,1773390638669,-300.0,9.077e-05,2]
[408312155,1773390638678,-300.0,9.077e-05,2]
[408312156,1773390638687,-600.0,9.077e-05,2]
[408312157,1773390638698,-51815.3300372,9.1e-05,2]
[408312162,1773390641040,-296.95309785,9.1e-05,2]
[408312163,1773390641051,-50572.08476405,9.1e-05,2]
[408312164,1773390641061,-457.500071,9.104e-05,2]
[408312165,1773390641071,-331.51828169,9.189e-05,2]
[408312166,1773390641080,-259.0,9.456e-05,2]
[408312167,1773390641090,-457.500071,9.472e-05,2]
[408312168,1773390641100,-457.500071,9.84e-05,2]
[408312169,1773390641110,-720.0,9.985e-05,2]
[408312170,1773390641119,-162.380719,9.994e-05,2]
[408312171,1773390641129,-500.0,9.994e-05,2]
[408312172,1773390641138,-445.202766,9.994e-05,2]
[408312173,1773390641147,-500.0,9.994e-05,2]
[408312174,1773390641157,-500.0,9.994e-05,2]
[408312175,1773390641167,-162.380719,9.994e-05,2]
[408312176,1773390641176,-500.0,9.994e-05,2]
[408312177,1773390641186,-500.0,9.994e-05,2]
[408312178,1773390641195,-500.0,9.994e-05,2]
[408312179,1773390641205,-500.0,9.994e-05,2]
[408312180,1773390641215,-151.0,9.994e-05,2]
[408312181,1773390641226,-500.0,9.994e-05,2]
[408312182,1773390641236,-500.0,9.994e-05,2]
[408312183,1773390641246,-500.0,9.994e-05,2]
[408312184,1773390641255,-500.0,9.994e-05,2]
[408312185,1773390641265,-500.0,9.994e-05,2]
[408312186,1773390641274,-500.0,9.994e-05,2]
[408312187,1773390641284,-500.0,9.994e-05,2]
[408312188,1773390641294,-250.0,9.994e-05,2]
[408312189,1773390641304,-250.0,9.994e-05,2]
[408312190,1773390641313,-222.08747262,9.994e-05,2]
[408312191,1773390641323,-500.0,9.994e-05,2]
[408312192,1773390641332,-500.0,9.994e-05,2]
[408312193,1773390641342,-500.0,9.994e-05,2]
[408312194,1773390641351,-500.0,9.994e-05,2]
[408312195,1773390641361,-539.50031307,9.994e-05,2]
[408312196,1773390641370,-71657.45703151,0.0001,2]
[408312214,1773390646364,-221.74222629,9.8e-05,2]
[408312215,1773390646376,-95.96377371,0.0001,2]
[408312216,1773390646388,-11694.06760596,0.0001,2]
[408312217,1773390710049,1554.07,0.00030136,120]
[408312221,1773390910336,167.0,0.00027302,120]
[408312222,1773390911489,167.0,0.00028667,120]
[408312223,1773390912761,167.0,0.000301,120]
[408312226,1773391191241,99970.69,0.00030136,120]
[408312227,1773391209323,168.0,0.00029124,120]
[408312228,1773391308552,1489.31,0.00030136,120]
[408312229,1773391323666,1444.0,0.00026137,120]
[408312256,1773391778125,199.64,0.00030137,120]
[408312393,1773391838713,-165.7347823,7.804e-05,2]
[408312395,1773391838723,-530.0,7.804e-05,2]
[408312397,1773391838732,-300.0,9.723e-05,2]
[408312399,1773391838742,-643.185,9.724e-05,2]
[408312401,1773391838751,-2215.887,9.724e-05,2]
[408312403,1773391838759,-1414.253,9.724e-05,2]
[408312405,1773391838768,-150.399,9.724e-05,2]
[408312406,1773391838778,-500.0,9.773e-05,2]
[408312408,1773391838788,-80.5412177,9.773e-05,2]
[408312504,1773391843620,-150.601,9.724e-05,2]
[408312505,1773391843630,-136.791,9.724e-05,2]
[408312506,1773391843671,-13.829,9.724e-05,2]
[408312507,1773391843681,-419.4587823,9.773e-05,2]
[408312508,1773391843690,-500.0,9.773e-05,2]
[408312509,1773391843699,-183.000028,9.774e-05,2]
[408312510,1773391843708,-720.96437565,9.8e-05,2]
[408312511,1773391843718,-1633.12618132,9.8e-05,2]
[408312512,1773391843728,-674.63468036,9.8e-05,2]
[408312520,1773391846468,-5000.0,9.675e-05,10]
[408312521,1773391846478,-1146.74917762,9.8e-05,2]
[408312522,1773391846488,-957.0922635,9.8e-05,2]
[408312523,1773391846497,-26479.8827475,9.8e-05,2]
[408312524,1773391846531,-3597.69856,9.8e-05,2]
[408312525,1773391846679,-1257.35628795,9.8e-05,2]
[408312527,1773391905996,1427.26,0.00030136,120]
[408312532,1773391964174,-1435.14,9.531e-05,2]
[408312533,1773391964198,-564.86,9.627e-05,2]
[408312534,1773391966192,-2000.0,9.627e-05,2]
[408312535,1773391967036,-2000.0,9.627e-05,2]
[408312536,1773391968450,-435.14,9.627e-05,2]
[408312537,1773391968472,-300.0,9.701e-05,2]
[408312538,1773391968493,-1264.86,9.702e-05,10]
[408312539,1773391969509,-2000.0,9.702e-05,10]
[408312561,1773392106306,1444.0,0.00026137,120]
[408312562,1773392141359,-2000.0,9.531e-05,2]
[408312563,1773392142478,-2000.0,9.531e-05,2]
[408312564,1773392143357,-1000.0,9.531e-05,2]
[408312565,1773392143378,-1000.0,9.607e-05,2]
[408312566,1773392144248,-549.00853213,9.607e-05,2]
[408312567,1773392144269,-1450.99146787,9.627e-05,2]
[408312568,1773392145320,-1926.81354616,9.627e-05,2]
[408312569,1773392145342,-73.18645384,9.665e-05,2]
[408312571,1773392342545,-1735.14,9.568e-05,10]
[408312572,1773392342566,-159.75831474,9.584e-05,2]
[408312573,1773392342589,-105.10168526,9.6e-05,2]
[408312574,1773392343489,-300.0,9.599e-05,2]
[408312575,1773392343512,-1700.0,9.6e-05,2]
[408312576,1773392344355,-2000.0,9.6e-05,2]
[408312577,1773392345235,-2000.0,9.6e-05,2]